bitfinex/quotes_SOLUSD_20250817
["timestamp","ask_amount","ask_price","bid_price","bid_amount"]
[1755401543983,0.66,191.36,191.27,26.0]
[1755401544199,7.68276958,191.36,191.31,3.15742212]
[1755401544369,3.15742212,191.36,191.31,3.15742212]
[1755401544570,0.66,191.35,191.31,3.15742212]
[1755401545200,5.22629873,191.34,191.31,3.15742212]
[1755401545561,0.66,191.33,191.31,3.15742212]
[1755401545766,0.66,191.33,191.32,3.15742212]
[1755401546577,0.66,191.33,191.31,3.15742212]
[1755401546774,5.22629873,191.34,191.31,3.15742212]
[1755401546985,0.66,191.33,191.31,3.15742212]
[1755401547189,0.66,191.32,191.31,3.15742212]
[1755401547892,5.22629873,191.34,191.31,3.15742212]
[1755401548083,5.88629873,191.34,191.31,3.15742212]
[1755401548591,5.88629873,191.34,191.32,3.15742212]
[1755401548793,0.66,191.33,191.32,3.15742212]
[1755401549378,3.53921094,191.37,191.32,3.66742212]
[1755401549586,0.06,191.37,191.36,3.15742212]
[1755401550503,0.06,191.37,191.36,3.66742212]
[1755401553891,0.06,191.37,191.36,23.99939019]
[1755401554420,0.06,191.37,191.36,29.30255594]
[1755401554773,0.06,191.37,191.36,23.56680344]
[1755401554990,0.72,191.37,191.36,8.46058787]
[1755401555208,0.06,191.37,191.36,8.46058787]
[1755401557023,0.06,191.37,191.36,8.97058787]
[1755401557314,0.06,191.37,191.36,8.46058787]
[1755401557678,0.06,191.37,191.36,14.19634037]
[1755401559100,0.06,191.37,191.36,14.33850194]
[1755401559483,7.38969416,191.43,191.4,2.64]
[1755401559807,7.38969416,191.42,191.41,15.10621557]
[1755401560901,7.38969416,191.42,191.41,3.15742212]
[1755401561199,8.04969416,191.42,191.4,2.64]
[1755401561374,8.04969416,191.41,191.4,2.64]
[1755401561807,8.04969416,191.41,191.4,5.79742212]
[1755401562002,7.38969416,191.41,191.4,5.79742212]
[1755401562218,8.04969416,191.41,191.4,5.79742212]
[1755401562383,8.04584502,191.41,191.4,5.79742212]
[1755401562714,8.04584502,191.41,191.4,2.64]
[1755401562920,8.04506951,191.41,191.4,2.64]
[1755401564801,7.38506951,191.41,191.4,5.79742212]
[1755401565516,8.09506951,191.41,191.4,5.79742212]
[1755401565811,8.09506951,191.41,191.4,3.15742212]
[1755401566311,0.71,191.41,191.4,3.15742212]
[1755401566684,4.20846068,191.41,191.4,3.15742212]
[1755401566917,0.71,191.41,191.4,3.15742212]
[1755401567354,3.49846068,191.41,191.4,3.15742212]
[1755401567639,4.20846068,191.43,191.4,3.15742212]
[1755401567834,7.38282825,191.42,191.4,3.15742212]
[1755401568037,3.49846068,191.41,191.4,3.15742212]
[1755401568219,3.49846068,191.42,191.4,3.15742212]
[1755401568412,0.71,191.41,191.4,3.15742212]
[1755401569729,0.71,191.41,191.38,15.10621557]
[1755401569931,0.71,191.41,191.4,3.15742212]
[1755401570748,0.71,191.41,191.38,15.10621557]
[1755401570937,0.71,191.41,191.4,3.15742212]
[1755401572651,0.71,191.41,191.38,15.10621557]
[1755401572823,0.71,191.41,191.39,3.15742212]
[1755401574433,3.49846068,191.42,191.4,3.15742212]
[1755401574636,3.49846068,191.42,191.41,3.15742212]
[1755401574829,4.20846068,191.42,191.41,3.15742212]
[1755401575033,0.71,191.42,191.4,3.15742212]
[1755401575228,0.71,191.41,191.4,3.15742212]
[1755401584833,0.71,191.41,191.38,52.14621557]
[1755401585033,4.20737823,191.41,191.4,3.15742212]
[1755401585228,0.71,191.41,191.4,3.15742212]
[1755401585648,4.20737823,191.43,191.4,3.15742212]
[1755401585835,3.49737823,191.42,191.41,3.15742212]
[1755401586142,4.20737823,191.42,191.41,3.15742212]
[1755401586737,0.71,191.42,191.41,3.15742212]
[1755401586942,4.20737823,191.42,191.41,3.15742212]
[1755401587169,0.71,191.42,191.41,3.15742212]
[1755401587335,4.20737823,191.42,191.4,3.15742212]
[1755401587534,0.71,191.42,191.4,3.15742212]
[1755401587834,4.20737823,191.42,191.4,3.15742212]
[1755401588042,0.71,191.42,191.4,3.15742212]
[1755401588261,5.22357104,191.44,191.4,3.15742212]
[1755401588457,5.22357104,191.44,191.38,52.14621557]
[1755401588458,0.71,191.41,191.38,52.14621557]
[1755401589359,5.22357104,191.44,191.38,52.65621557]
[1755401589360,5.93357104,191.44,191.38,52.65621557]
[1755401589544,7.40483316,191.43,191.4,3.15742212]
[1755401589741,7.40483316,191.42,191.4,3.15742212]
[1755401590067,0.71,191.42,191.41,3.15742212]
[1755401590357,4.22004741,191.42,191.41,3.15742212]
[1755401590771,8.12012782,191.42,191.41,3.15742212]
[1755401591342,8.12012782,191.42,191.4,3.15742212]
[1755401591567,8.12012782,191.41,191.4,3.15742212]
[1755401592363,8.12012782,191.41,191.38,15.10621557]
[1755401592548,0.71,191.41,191.4,3.15742212]
[1755401592749,8.12699751,191.41,191.4,3.15742212]
[1755401594655,8.12699751,191.41,191.38,52.04621557]
[1755401594849,0.71,191.41,191.4,2.01901189]
[1755401595046,8.13843151,191.41,191.4,2.01901189]
[1755401598670,8.19843151,191.41,191.4,2.01901189]
[1755401598918,8.19843151,191.41,191.37,0.03]
[1755401598919,21.1477507,191.41,191.37,0.03]
[1755401599100,4.39736162,191.38,191.37,0.03]
[1755401599408,13.15983848,191.38,191.37,0.03]
[1755401599901,13.86983848,191.38,191.37,0.03]
[1755401600111,40.55480502,191.38,191.37,0.03]
[1755401600269,41.88009098,191.38,191.37,0.03]
[1755401600670,43.01830261,191.38,191.37,0.03]
[1755401601011,48.243509,191.38,191.37,0.03]
[1755401601503,19.08628548,191.38,191.37,0.03]
[1755401603269,22.243509,191.38,191.37,0.03]
[1755401603501,20.91072426,191.38,191.37,0.03]
[1755401604283,16.5178601,191.38,191.37,0.03]
[1755401605505,48.24104796,191.38,191.37,0.03]
[1755401605696,43.8481838,191.38,191.37,0.03]
[1755401605888,62.56110878,191.38,191.33,0.03]
[1755401606116,3.15722352,191.34,191.33,0.03]
[1755401606318,10.58265371,191.34,191.33,0.03]
[1755401606621,7.42543019,191.34,191.33,0.03]
[1755401606821,8.13543019,191.34,191.33,0.03]
[1755401607631,16.51895244,191.34,191.33,0.03]
[1755401609206,16.50603347,191.34,191.33,0.03]
[1755401615014,16.50241696,191.34,191.33,0.03]
[1755401615217,16.50226943,191.34,191.33,0.03]
[1755401615810,16.50128728,191.34,191.33,0.03]
[1755401616911,13.34406376,191.34,191.33,0.03]
[1755401617111,16.50128728,191.34,191.33,0.03]
[1755401620630,53.32128728,191.34,191.33,0.03]
[1755401621532,53.31609726,191.34,191.33,0.03]
[1755401625934,0.7,191.34,191.33,0.03]
[1755401626126,37.5,191.34,191.33,0.03]
[1755401626316,44.1520233,191.34,191.33,0.03]
[1755401626527,3.49479978,191.34,191.33,0.54]
[1755401626817,4.52865111,191.39,191.33,0.54]
[1755401626818,5.28444932,191.41,191.33,3.69722352]
[1755401627007,3.55595667,191.41,191.4,3.15722352]
[1755401627352,46.02161096,191.41,191.35,0.51]
[1755401627635,6.65318019,191.4,191.35,0.51]
[1755401627803,5.22520639,191.38,191.35,0.51]
[1755401628007,40.05722352,191.37,191.33,0.03]
[1755401628206,3.15722352,191.36,191.33,0.03]
[1755401628629,3.15722352,191.36,191.33,0.54]
[1755401628803,40.75722352,191.37,191.33,0.03]
[1755401629443,3.15722352,191.35,191.33,0.03]
[1755401629807,3.85722352,191.35,191.33,0.03]
[1755401630857,5.22629873,191.34,191.33,0.03]
[1755401634437,8.71846038,191.35,191.33,0.03]
[1755401634641,5.22605781,191.35,191.33,0.03]
[1755401634844,10.73932783,191.35,191.33,0.03]
[1755401636618,7.24692526,191.35,191.33,0.03]
[1755401636923,8.71846038,191.35,191.33,0.54]
[1755401637133,8.71846038,191.35,191.33,0.03]
[1755401638218,3.49240257,191.34,191.33,0.03]
[1755401641442,8.7187013,191.34,191.33,0.03]
[1755401642067,9.4187013,191.34,191.33,0.03]
[1755401643350,13.30775306,191.34,191.33,0.03]
[1755401644141,9.4187013,191.34,191.33,0.03]
[1755401644338,13.30819105,191.34,191.33,0.03]
[1755401645242,15.3290585,191.34,191.33,0.03]
[1755401647263,7.38189232,191.34,191.33,0.03]
[1755401647456,3.49240257,191.34,191.33,0.03]
[1755401649256,4.19240257,191.34,191.33,0.03]
[1755401649664,6.21327002,191.34,191.33,0.03]
[1755401649877,0.7,191.34,191.33,0.03]
[1755401650044,6.22200497,191.34,191.33,0.03]
[1755401650877,5.52200497,191.34,191.33,0.03]
[1755401651681,3.50113752,191.34,191.33,0.03]
[1755401651870,4.20113752,191.34,191.33,0.03]
[1755401652067,4.20113752,191.34,191.33,2.56086745]
[1755401652068,3.50113752,191.34,191.33,2.56086745]
[1755401652247,43.89728935,191.4,191.33,2.56086745]
[1755401652572,7.39134405,191.39,191.34,2.53086745]
[1755401652743,7.39134405,191.38,191.34,2.02086745]
[1755401652946,7.39134405,191.37,191.35,0.51]
[1755401653251,4.4364219,191.41,191.36,17.12708302]
[1755401653252,0.06,191.41,191.36,17.12708302]
[1755401653575,0.06,191.41,191.4,2.02086745]
[1755401653772,0.06,191.41,191.4,7.24552784]
[1755401653947,0.06,191.41,191.4,7.75552784]
[1755401654268,4.25963859,191.41,191.37,7.24633605]
[1755401654470,3.55963859,191.41,191.38,2.02086745]
[1755401654645,0.06,191.41,191.38,2.53086745]
[1755401654983,3.55963859,191.41,191.38,2.53086745]
[1755401655177,0.06,191.41,191.38,2.53086745]
[1755401655379,0.06,191.41,191.4,2.02086745]
[1755401655754,0.06,191.41,191.4,2.53086745]
[1755401655969,0.06,191.41,191.4,2.02086745]
[1755401657293,0.06,191.41,191.4,7.75552784]
[1755401657773,0.06,191.41,191.4,22.86174341]
[1755401658771,0.06,191.41,191.4,23.99437919]
[1755401658971,0.06,191.41,191.4,60.95654076]
[1755401659153,0.06,191.41,191.4,60.81437919]
[1755401659353,0.06,191.41,191.4,60.95654076]
[1755401660773,0.06,191.41,191.4,60.81437919]
[1755401665075,0.06,191.41,191.4,140.71437919]
[1755401665270,0.06,191.41,191.4,137.56087596]
[1755401665486,0.06,191.41,191.4,140.71437919]
[1755401666471,0.06,191.41,191.4,140.20437919]
[1755401666676,0.06,191.41,191.4,103.38437919]
[1755401666876,0.06,191.41,191.4,140.16437919]
[1755401667081,0.06,191.41,191.4,140.67437919]
[1755401667474,0.06,191.41,191.4,140.16437919]
[1755401669264,0.06,191.41,191.4,18.2597188]
[1755401669501,0.73,191.41,191.4,55.0397188]
[1755401669867,0.06,191.41,191.4,55.0397188]
[1755401670063,0.06,191.41,191.4,60.26437919]
[1755401671095,0.06,191.41,191.4,60.77437919]
[1755401671278,0.06,191.41,191.4,60.91654076]
[1755401671478,0.06,191.41,191.4,64.07004399]
[1755401671679,0.06,191.41,191.4,60.91654076]
[1755401672573,0.06,191.41,191.4,64.07004399]
[1755401673992,0.06,191.41,191.4,143.97004399]
[1755401674469,0.06,191.43,191.42,41.10621557]
[1755401674668,0.06,191.43,191.42,81.18188037]
[1755401675001,0.06,191.43,191.42,81.69188037]
[1755401675871,0.06,191.43,191.42,86.91599488]
[1755401676290,0.06,191.43,191.42,50.13599488]
[1755401676606,0.06,191.43,191.42,86.91599488]
[1755401676775,0.06,191.43,191.42,86.40599488]
[1755401683890,0.06,191.43,191.42,49.62599488]
[1755401684088,0.06,191.43,191.42,86.40599488]
[1755401685387,0.06,191.43,191.42,86.91599488]
[1755401685918,0.06,191.43,191.42,166.81599488]
[1755401687305,0.06,191.43,191.42,166.30599488]
[1755401687689,0.06,191.43,191.42,166.81599488]
[1755401688620,0.06,191.43,191.42,166.30599488]
[1755401691009,0.06,191.43,191.42,166.28599488]
[1755401700630,0.72,191.43,191.42,103.38383331]
[1755401700783,0.06,191.43,191.42,139.15030316]
[1755401702390,0.06,191.45,191.44,26.0]
[1755401702638,8.79424531,191.58,191.51,41.10621557]
[1755401702639,0.66,191.52,191.51,41.10621557]
[1755401702943,0.66,191.52,191.51,79.88402708]
[1755401703305,0.66,191.57,191.53,0.14216157]
[1755401703527,3.90052033,191.6,191.56,2.01781151]
[1755401703710,7.41016619,191.59,191.58,2.01781151]
[1755401704096,8.07016619,191.59,191.58,2.01781151]
[1755401704714,8.07016619,191.59,191.58,3.14829686]
[1755401705228,4.16964586,191.59,191.58,3.14829686]
[1755401705594,0.66,191.61,191.59,15.10621557]
[1755401705801,0.66,191.63,191.61,0.14216157]
[1755401706112,3.50701559,191.69,191.63,15.10621557]
[1755401706308,3.14829686,191.7,191.61,0.14216157]
[1755401706309,7.39891478,191.68,191.64,39.90829686]
[1755401706509,3.50701559,191.67,191.65,36.76]
[1755401706718,0.66,191.66,191.65,36.76]
[1755401706925,0.66,191.66,191.63,36.76]
[1755401707089,7.31531245,191.66,191.63,36.76]
[1755401707293,0.66,191.65,191.64,3.14829686]
[1755401707518,0.66,191.65,191.63,39.90829686]
[1755401707691,0.66,191.65,191.64,3.14829686]
[1755401707893,0.66,191.65,191.63,39.90829686]
[1755401708120,5.87787683,191.65,191.6,3.14829686]
[1755401708327,0.66,191.64,191.61,39.90829686]
[1755401708902,0.66,191.64,191.62,3.14829686]
[1755401709202,3.14829686,191.66,191.63,36.78]
[1755401709397,3.14829686,191.66,191.62,36.78]
[1755401709793,5.87793829,191.65,191.62,36.78]
[1755401710017,0.66,191.64,191.62,36.78]
[1755401710834,3.50701559,191.67,191.63,3.14829686]
[1755401710997,8.36529231,191.69,191.63,3.14829686]
[1755401711411,0.66,191.68,191.63,3.14829686]
[1755401711739,9.02533898,191.68,191.64,36.76]
[1755401711909,0.66,191.67,191.64,36.76]
[1755401712426,3.80829686,191.67,191.64,36.76]
[1755401712628,0.66,191.66,191.62,3.14829686]
[1755401712801,0.66,191.66,191.63,36.76]
[1755401714236,3.50701559,191.7,191.66,15.10621557]
[1755401714405,0.72,191.68,191.67,36.76]
[1755401714810,0.72,191.68,191.65,36.78]
[1755401715118,0.72,191.68,191.65,39.92829686]
[1755401715425,0.72,191.67,191.66,3.14829686]
[1755401716031,0.06,191.66,191.65,55.03451243]
[1755401716229,0.78,191.66,191.65,55.03451243]
[1755401716923,0.78,191.66,191.65,51.88621557]
[1755401717113,0.78,191.66,191.65,55.03451243]
[1755401717315,0.06,191.66,191.65,60.25235746]
[1755401718539,0.06,191.66,191.65,60.90451903]
[1755401718935,0.06,191.66,191.65,61.42630353]
[1755401719113,0.06,191.68,191.67,15.10621557]
[1755401719437,0.06,191.68,191.67,55.216674]
[1755401719624,0.06,191.68,191.67,55.726674]
[1755401720321,0.06,191.68,191.67,140.84397456]
[1755401720534,0.06,191.7,191.69,44.396674]
[1755401720839,6.6290685,191.8,191.69,44.396674]
[1755401720840,0.72,191.79,191.74,15.10621557]
[1755401721048,5.21267723,191.84,191.77,3.14829686]
[1755401721342,0.72,191.78,191.77,36.84]
[1755401721542,0.72,191.78,191.76,3.14829686]
[1755401721714,0.72,191.78,191.77,36.84]
[1755401722049,3.47543458,191.83,191.77,36.84]
[1755401722238,3.14829686,191.8,191.77,36.84]
[1755401722442,3.14829686,191.78,191.76,36.84]
[1755401723021,8.36254504,191.79,191.76,36.84]
[1755401723940,0.72,191.78,191.76,36.84]
[1755401724120,0.72,191.78,191.74,18.25451243]
[1755401724318,0.72,191.78,191.75,36.82]
[1755401724522,0.72,191.77,191.75,36.82]
[1755401724740,3.86829686,191.76,191.73,36.82]
[1755401724921,0.72,191.75,191.73,36.82]
[1755401725232,0.72,191.75,191.71,18.25451243]
[1755401725437,0.72,191.74,191.72,36.82]
[1755401725644,0.72,191.76,191.72,36.82]
[1755401725939,0.72,191.75,191.72,39.96829686]
[1755401726241,0.72,191.74,191.72,36.82]
[1755401726542,0.72,191.73,191.72,36.82]
[1755401727317,5.21515373,191.75,191.72,36.82]
[1755401727318,0.72,191.75,191.72,36.82]
[1755401727648,0.72,191.74,191.72,36.82]
[1755401728240,0.72,191.73,191.72,36.82]
[1755401730213,0.72,191.75,191.72,39.96829686]
[1755401731242,0.72,191.77,191.73,3.14829686]
[1755401731439,0.72,191.76,191.74,36.8]
[1755401733925,0.78,191.76,191.74,36.8]
[1755401734149,0.06,191.76,191.74,36.8]
[1755401734652,0.78,191.76,191.74,36.8]
[1755401734840,0.06,191.76,191.75,3.83829686]
[1755401735043,0.06,191.76,191.75,18.94451243]
[1755401735241,0.06,191.76,191.75,18.25451243]
[1755401735436,0.06,191.76,191.74,39.94829686]
[1755401735630,0.06,191.76,191.74,36.8]
[1755401735833,0.72,191.75,191.74,36.82]
[1755401736756,0.22,191.75,191.74,36.82]
[1755401737961,5.27492018,191.76,191.7,15.13621557]
[1755401738253,3.14829686,191.73,191.72,36.82]
[1755401738416,9.06993611,191.75,191.72,36.82]
[1755401738417,3.14829686,191.74,191.72,36.82]
[1755401738617,3.86829686,191.74,191.72,36.82]
[1755401739435,0.72,191.73,191.72,36.82]
[1755401739635,8.36371519,191.74,191.72,36.82]
[1755401739842,9.08371519,191.74,191.72,36.82]
[1755401740041,5.93541833,191.74,191.72,36.82]
[1755401740240,9.08371519,191.74,191.72,36.82]
[1755401740937,3.86829686,191.73,191.7,0.03]
[1755401741139,3.14829686,191.71,191.7,0.03]
[1755401741336,7.00902422,191.71,191.7,0.03]
[1755401741648,12.52115676,191.71,191.7,0.03]
[1755401742947,17.73736874,191.71,191.7,0.03]
[1755401744258,26.0,191.69,191.68,0.03]
[1755401744562,37.80115676,191.69,191.68,0.03]
[1755401744851,42.88078707,191.69,191.68,0.03]
[1755401745037,48.09754329,191.69,191.68,0.03]
[1755401745238,48.11493823,191.69,191.68,0.03]
[1755401745653,44.24018413,191.69,191.68,0.03]
[1755401745856,48.1150609,191.69,191.68,0.03]
[1755401746330,43.75543059,191.69,191.68,0.03]
[1755401747742,80.57543059,191.69,191.68,0.03]
[1755401748248,76.68055382,191.69,191.68,0.03]
[1755401748460,80.56513368,191.69,191.61,0.69]
[1755401748649,3.14829686,191.64,191.61,0.69]
[1755401748832,7.35555846,191.63,191.62,0.69]
[1755401749234,10.50385532,191.63,191.62,0.69]
[1755401749547,7.35555846,191.63,191.62,0.69]
[1755401749749,10.50385532,191.63,191.62,0.69]
[1755401749958,7.35555846,191.63,191.62,0.69]
[1755401750534,7.35555846,191.63,191.62,0.72]
[1755401750936,10.50385532,191.63,191.62,0.03]
[1755401751833,10.50385532,191.63,191.62,0.72]
[1755401752276,8.23878957,191.72,191.62,24.19317436]
[1755401752432,3.88566927,191.71,191.69,3.14829686]
[1755401752630,7.75350585,191.7,191.65,26.0]
[1755401752826,7.75350585,191.69,191.65,26.0]
[1755401753060,3.88520899,191.68,191.65,26.0]
[1755401753231,3.86829686,191.69,191.65,26.0]
[1755401753427,3.14829686,191.67,191.62,5.24839807]
[1755401753668,3.14829686,191.65,191.62,0.03]
[1755401753843,3.14829686,191.64,191.62,0.03]
[1755401754274,0.72,191.65,191.62,0.03]
[1755401754428,3.14829686,191.65,191.62,0.03]
[1755401754627,3.14829686,191.68,191.62,23.50315223]
[1755401755040,3.14829686,191.68,191.64,15.10621557]
[1755401755527,7.75503886,191.67,191.64,15.10621557]
[1755401755731,3.86829686,191.67,191.64,15.10621557]
[1755401755941,3.86829686,191.69,191.64,15.10621557]
[1755401756149,7.03499305,191.68,191.64,15.10621557]
[1755401756328,3.86829686,191.68,191.64,15.10621557]
[1755401756547,3.14829686,191.67,191.64,15.10621557]
[1755401757754,3.86829686,191.67,191.62,8.39693666]
[1755401757943,3.14829686,191.67,191.63,15.10621557]
[1755401758137,3.14829686,191.68,191.63,15.10621557]
[1755401758749,5.93642654,191.71,191.63,3.14829686]
[1755401758949,3.14829686,191.69,191.63,3.14829686]
[1755401759565,3.14829686,191.69,191.63,8.36644308]
[1755401759866,3.14829686,191.69,191.64,15.10621557]
[1755401760044,3.14829686,191.68,191.64,15.10621557]
[1755401760253,0.72,191.68,191.64,15.10621557]
[1755401760444,3.86829686,191.67,191.63,79.9]
[1755401760770,3.14829686,191.66,191.63,79.9]
[1755401761572,5.21649705,191.7,191.64,15.10621557]
[1755401761573,0.72,191.7,191.64,15.10621557]
[1755401761870,3.14829686,191.69,191.64,15.10621557]
[1755401762870,3.14829686,191.69,191.64,20.3243111]
[1755401763253,3.14829686,191.68,191.64,20.3243111]
[1755401764285,3.86829686,191.68,191.64,20.3243111]
[1755401764946,3.14829686,191.66,191.63,79.9]
[1755401765648,3.14829686,191.66,191.63,15.10621557]
[1755401765977,3.86829686,191.67,191.63,57.16459357]
[1755401767044,3.14829686,191.68,191.63,57.16459357]
[1755401767376,3.86829686,191.68,191.63,57.16459357]
[1755401767747,3.86829686,191.67,191.63,57.16459357]
[1755401768451,3.49934963,191.7,191.63,60.31289043]
[1755401768658,4.21934963,191.73,191.69,3.14829686]
[1755401768879,0.72,191.72,191.69,36.84]
[1755401769561,4.21934963,191.73,191.69,36.84]
[1755401769788,3.49934963,191.73,191.7,3.14829686]
[1755401769950,3.55934963,191.74,191.7,15.10621557]
[1755401770146,0.06,191.74,191.71,8.36450884]
[1755401770372,3.55934963,191.74,191.72,40.00829686]
[1755401770685,3.55934963,191.74,191.73,18.25451243]
[1755401770686,0.06,191.74,191.73,18.25451243]
[1755401771352,0.06,191.74,191.73,15.10621557]
[1755401771557,0.06,191.74,191.73,52.00621557]
[1755401771861,0.06,191.74,191.73,55.15451243]
[1755401772262,0.06,191.74,191.73,60.37018029]
[1755401772677,0.06,191.74,191.73,60.39018029]
[1755401773262,0.06,191.74,191.73,60.53234186]
[1755401775993,0.06,191.74,191.73,57.384045]
[1755401776197,0.06,191.74,191.73,60.53234186]
[1755401776552,0.06,191.74,191.73,140.43234186]
[1755401776770,0.7,191.81,191.77,15.10621557]
[1755401776974,0.7,191.81,191.78,40.06829686]
[1755401777383,0.7,191.8,191.78,40.06829686]
[1755401777860,0.7,191.8,191.79,5.21403618]
[1755401778182,0.7,191.8,191.79,42.11403618]
[1755401778688,0.7,191.82,191.79,36.9]
[1755401779382,0.7,191.81,191.79,36.9]
[1755401779575,0.7,191.83,191.79,36.9]
[1755401779787,3.84829686,191.83,191.79,36.9]
[1755401779984,3.14829686,191.83,191.79,42.11386906]
[1755401780300,0.7,191.82,191.79,42.11386906]
[1755401780471,3.14829686,191.84,191.79,42.11386906]
[1755401780676,0.7,191.82,191.79,42.11386906]
[1755401780886,0.7,191.84,191.8,18.25451243]
[1755401781096,0.7,191.83,191.81,40.02829686]
[1755401781283,6.39291228,191.83,191.81,40.02829686]
[1755401781488,6.39291228,191.83,191.81,36.88]
[1755401781885,5.69291228,191.83,191.82,18.25451243]
[1755401782086,5.69291228,191.83,191.82,28.79366682]
[1755401782591,6.39291228,191.83,191.82,62.88]
[1755401783406,6.39291228,191.83,191.82,77.98621557]
[1755401783792,6.39291228,191.83,191.82,62.88]
[1755401784675,6.45291228,191.83,191.82,62.88]
[1755401786778,5.75291228,191.83,191.82,68.09322072]
[1755401786974,5.75291228,191.83,191.82,86.34773315]
[1755401787701,6.45291228,191.83,191.82,36.88]
[1755401788531,6.45291228,191.83,191.81,5.15399405]
[1755401788782,8.90120914,191.83,191.82,36.84]
[1755401789301,14.81418038,191.83,191.82,36.86]
[1755401789505,9.60120914,191.83,191.82,36.86]
[1755401789816,14.81420602,191.83,191.81,36.86]
[1755401790004,3.84829686,191.82,191.79,5.31371864]
[1755401790206,3.84829686,191.81,191.8,36.86]
[1755401791290,6.45291228,191.83,191.8,36.86]
[1755401791502,9.60120914,191.83,191.8,36.86]
[1755401791688,8.90120914,191.83,191.8,36.86]
[1755401791891,0.7,191.82,191.8,36.86]
[1755401793222,0.7,191.81,191.8,36.86]
[1755401793586,3.84829686,191.81,191.8,36.86]
[1755401793831,3.84829686,191.81,191.8,36.82]
[1755401794320,3.84829686,191.81,191.75,8.36337738]
[1755401794321,3.84829686,191.81,191.79,36.82]
[1755401794613,5.75291228,191.83,191.79,36.82]
[1755401794614,3.84829686,191.8,191.79,36.82]
[1755401795607,3.84829686,191.8,191.68,13.07245754]
[1755401795808,3.14829686,191.74,191.69,8.36499962]
[1755401796009,3.14829686,191.74,191.73,36.82]
[1755401796191,3.84829686,191.74,191.68,0.03]
[1755401796395,3.84829686,191.73,191.71,36.84]
[1755401796600,3.84829686,191.73,191.69,36.84]
[1755401796796,3.84829686,191.78,191.72,40.01829686]
[1755401797722,3.84829686,191.78,191.74,5.21539584]
[1755401798020,0.7,191.77,191.75,36.9]
[1755401798222,3.14829686,191.78,191.75,36.9]
[1755401798418,3.84829686,191.76,191.72,0.03]
[1755401798622,3.14829686,191.73,191.72,36.93]
[1755401798800,3.84829686,191.73,191.72,36.93]
[1755401798997,0.7,191.73,191.72,0.03]
[1755401799193,3.14829686,191.76,191.72,0.03]
[1755401799502,3.84829686,191.75,191.72,0.03]
[1755401799816,3.14829686,191.74,191.72,0.03]
[1755401800018,3.84829686,191.75,191.72,0.03]
[1755401800400,0.7,191.74,191.72,0.03]
[1755401800597,3.14829686,191.75,191.72,0.03]
[1755401800816,3.14829686,191.76,191.72,0.03]
[1755401801291,0.7,191.75,191.72,0.03]
[1755401802127,3.84829686,191.74,191.72,0.03]
[1755401802536,0.7,191.73,191.72,0.03]
[1755401802694,0.7,191.76,191.72,0.03]
[1755401802899,3.14829686,191.75,191.72,0.03]
[1755401803327,0.7,191.74,191.72,0.03]
[1755401803627,3.84829686,191.74,191.72,0.03]
[1755401803831,0.7,191.73,191.72,0.03]
[1755401805201,3.84829686,191.73,191.72,0.03]
[1755401806035,0.7,191.73,191.72,0.03]
[1755401807401,3.84829686,191.73,191.72,0.03]
[1755401807605,0.7,191.73,191.72,0.03]
[1755401807811,3.82829686,191.73,191.72,0.03]
[1755401809437,0.68,191.73,191.72,0.03]
[1755401809645,3.82829686,191.73,191.72,0.03]
[1755401811837,0.68,191.73,191.72,0.03]
[1755401812044,3.82829686,191.73,191.72,0.03]
[1755401816849,0.06,191.78,191.72,0.03]
[1755401817031,0.68,191.76,191.73,3.14829686]
[1755401817354,0.68,191.76,191.72,3.17829686]
[1755401817530,0.68,191.76,191.72,39.99829686]
[1755401817928,0.74,191.76,191.73,5.21566786]
[1755401818128,0.68,191.75,191.73,5.21566786]